Workbook

Sheet SM-sarja
B1: Hannu Panula | E1: 12.11.1952
B2: MESTARUUSSARJA | E2: Runkosarja | I2: Kärkilyönnit (KL), pesänvälit | P2: Runkosarja TOP-30 | U2: Ylempi loppusarja | AB2: Alempi loppusarja | AI2: Arvo-ottelut | AM2: Mitalit
B3: Vuosi | C3: Sija | D3: Seura | E3: OTT | F3: KUN | G3: LÖI | H3: TOI | I3: KL | J3: 0 > 1 | K3: 1 > 2 | L3: 2 > 3 | M3: 3 > k | N3: KL-% | P3: LÖI | Q3: TOI | R3: L+T | S3: KL | U3: OTT | V3: KUN | W3: LÖI | X3: TOI | Y3: KL | Z3: KL-% | AB3: OTT | AC3: KUN | AD3: LÖI | AE3: TOI | AF3: KL | AG3: KL-% | AI3: IL | AJ3: LL | AK3: Cup | AL3: K | AM3: H | AN3: P
B4: 1978 | C4: 1. | D4: KaKa | F4: suomensarja
B5: 1979 | C5: 11. | D5: KaKa | E5: 22 | F5: 0 | G5: 10 | H5: 18 | I5: 76 | J5: 20 | K5: 29 | L5: 17 | M5: 10 | N5: ---- | Q5: 26. | AB5: 6 | AC5: 0 | AD5: 2 | AE5: 1 | AF5: 18 | AG5: ----
B6: 1980 | C6: 1. | D6: KaKa | F6: suomensarja
B7: 1981 | C7: 12. | D7: KaKa | E7: 22 | F7: 0 | G7: 14 | H7: 11 | I7: 71 | J7: 16 | K7: 30 | L7: 11 | M7: 14 | N7: 53.0 %
B8: 1982 | C8: 5. | D8: KaKa | F8: ykkössarja
B9: 1983 | C9: 12. | D9: KaKa | F9: ykkössarja
B10: 1984 | C10: 10. | D10: KaKa | F10: suomensarja
B11: 1985 | C11: 1. | D11: KaKa | F11: maakuntasarja
B12: 1986 | C12: 9. | D12: KaKa | F12: suomensarja
B13: 1987 | C13: 9. | D13: KaKa | F13: suomensarja
B14: 1988 | C14: 8. | D14: KaKa | F14: suomensarja
B15: 1989
B16: 1990 | C16: 8. | D16: KaKa | F16: suomensarja
B17: Yhteensä | E17: 44 | F17: 0 | G17: 24 | H17: 29 | I17: 147 | J17: 36 | K17: 59 | L17: 28 | M17: 24 | N17: 53.0 % | P17: 0-0-0 | Q17: 0-0-0 | R17: 0-0-0 | S17: 0-0-0 | U17: 0 | V17: 0 | W17: 0 | X17: 0 | Y17: 0 | Z17: ---- | AB17: =PRODUCT(E23) -> 6 | AC17: =PRODUCT(F23) -> 0 | AD17: =PRODUCT(G23) -> 2 | AE17: =PRODUCT(H23) -> 1 | AF17: =PRODUCT(I23) -> 18 | AG17: ---- | AI17: 0 | AJ17: 0 | AK17: 0 | AL17: 0 | AM17: 0 | AN17: 0
B18: Pesispörssi | D18: 108.7
B20: URA SM-SARJASSA | E20: OTT | F20: KUN | G20: LÖI | H20: TOI | I20: KL | K20: ka/L | L20: ka/T | M20: ka/KL | N20: KL-% | P20: ENSIMMÄISET RUNKOSARJASSA
B21: Runkosarja | E21: 44 | F21: 0 | G21: 24 | H21: 29 | I21: 147 | K21: 0.55 | L21: 0.66 | M21: 3.34 | N21: 53.0 % | P21: Ottelu | R21: 06.05. 1979 KaKa - KaMa 1-12 | Y21: 1. ottelu | AC21: 26 v 5 kk 24 pv
B22: Ylempi loppusarja | P22: Lyöty | R22: 27.05. 1979 KaKa - Lohi 12-5 | Y22: 5. ottelu | AC22: 26 v 6 kk 15 pv
B23: Alempi loppusarja | E23: 6 | F23: 0 | G23: 2 | H23: 1 | I23: 18 | K23: 0.33 | L23: 0.17 | M23: 3.00 | N23: ---- | P23: Tuotu | R23: 17.05. 1979 KaKa - ViVe 8-6 | Y23: 3. ottelu | AC23: 26 v 6 kk 5 pv
B24: KAIKKI | E24: 50 | F24: 0 | G24: 26 | H24: 30 | I24: 165 | K24: 0.52 | L24: 0.60 | M24: 3.30 | N24: 53.0 % | P24: Kunnari
B26: Seurat | D26: KaKa = Kauhajoen Karhu (1910)

Sheet MYP, MSS
B1: Hannu Panula | E1: 12.11.1952
B2: YKKÖSPESIS | E2: Runkosarja | L2: Runkosarja TOP-10 | Q2: Jatkosarjat | X2: SUOMENSARJA | AA2: Runkosarja | AH2: Runkosarja TOP-10 | AM2: Jatkosarjat
B3: Vuosi | C3: Sija | D3: Seura | E3: OTT | F3: KUN | G3: LÖI | H3: TOI | I3: KL | J3: KL-% | L3: LÖI | M3: TOI | N3: L+T | O3: KL | Q3: OTT | R3: KUN | S3: LÖI | T3: TOI | U3: KL | V3: KL-% | X3: Vuosi | Y3: Sija | Z3: Seura | AA3: OTT | AB3: KUN | AC3: LÖI | AD3: TOI | AE3: KL | AF3: KL-% | AH3: LÖI | AI3: TOI | AJ3: L+T | AK3: KL | AM3: OTT | AN3: KUN | AO3: LÖI | AP3: TOI | AQ3: KL | AR3: KL-%
X4: 1978 | Y4: 1. | Z4: KaKa
X6: 1980 | Y6: 1. | Z6: KaKa
B8: 1982 | C8: 5. | D8: KaKa | E8: 10 | F8: 0 | G8: 8 | H8: 7 | Q8: 10 | R8: 1 | S8: 8 | T8: 7
B9: 1983 | C9: 12. | D9: KaKa | E9: 10 | F9: 1 | G9: 6 | H9: 5 | Q9: 10 | R9: 0 | S9: 3 | T9: 10
X10: 1984 | Y10: 10. | Z10: KaKa | AA10: 15 | AB10: 0 | AC10: 7 | AD10: 11
X12: 1986 | Y12: 9. | Z12: KaKa | AA12: 21 | AB12: 2 | AC12: 21 | AD12: 14 | AH12: 10.
X13: 1987 | Y13: 9. | Z13: KaKa | AA13: 7 | AB13: 0 | AC13: 3 | AD13: 1
X14: 1988 | Y14: 8. | Z14: KaKa | AA14: 16 | AB14: 0 | AC14: 8 | AD14: 8
X16: 1990 | Y16: 8. | Z16: KaKa | AA16: 1 | AB16: 0 | AC16: 0 | AD16: 0
B17: YHTEENSÄ | E17: =SUM(E4:E16) -> 20 | F17: =SUM(F4:F16) -> 1 | G17: =SUM(G4:G16) -> 14 | H17: =SUM(H4:H16) -> 12 | I17: =SUM(I4:I16) -> 0 | J17: 0.0 % | K17: =SUM(K4:K16) -> 0 | Q17: =SUM(Q4:Q16) -> 20 | R17: =SUM(R4:R16) -> 1 | S17: =SUM(S4:S16) -> 11 | T17: =SUM(T4:T16) -> 17 | U17: =SUM(U4:U16) -> 0 | V17: 0.0 % | W17: =SUM(W4:W16) -> 0 | X17: YHTEENSÄ | AA17: =SUM(AA4:AA16) -> 60 | AB17: =SUM(AB4:AB16) -> 2 | AC17: =SUM(AC4:AC16) -> 39 | AD17: =SUM(AD4:AD16) -> 34 | AE17: =SUM(AE4:AE16) -> 0 | AF17: 0.0 % | AG17: =SUM(AG4:AG16) -> 0 | AM17: =SUM(AM4:AM16) -> 0 | AN17: =SUM(AN4:AN16) -> 0 | AO17: =SUM(AO4:AO16) -> 0 | AP17: =SUM(AP4:AP16) -> 0 | AQ17: =SUM(AQ4:AQ16) -> 0 | AR17: 0.0 % | AS17: =SUM(AS4:AS16) -> 0
B19: KAIKKI OTTELUT | E19: OTT | F19: KUN | G19: LÖI | H19: TOI | I19: KL | J19: KL-% | L19: ka/L | M19: ka/T | N19: ka/l+t | O19: ka/kl | R19: Seurat | T19: KaKa = Kauhajoen Karhu (1910)
B20: SUPERPESIS | E20: 50 | F20: 0 | G20: 26 | H20: 30 | I20: 165 | J20: 0.0 % | K20: =PRODUCT(I20/J20) ->  | L20: =PRODUCT((F20+G20)/E20) -> 0.52 | M20: =PRODUCT(H20/E20) -> 0.60 | N20: =PRODUCT((F20+G20+H20)/E20) -> 1.12 | O20: =PRODUCT(I20/E20) -> 3.30
B21: YKKÖSPESIS | E21: =PRODUCT(E17+Q17) -> 40 | F21: =PRODUCT(F17+R17) -> 2 | G21: =PRODUCT(G17+S17) -> 25 | H21: =PRODUCT(H17+T17) -> 29 | I21: =PRODUCT(I17+U17) -> 0 | J21: 0.0 % | K21: =PRODUCT(K17+W17) -> 0 | L21: =PRODUCT((F21+G21)/E21) -> 0.68 | M21: =PRODUCT(H21/E21) -> 0.73 | N21: =PRODUCT((F21+G21+H21)/E21) -> 1.40 | O21: =PRODUCT(I21/E21) -> 0.00
B22: SUOMENSARJA | E22: =PRODUCT(AA17+AM17) -> 60 | F22: =PRODUCT(AB17+AN17) -> 2 | G22: =PRODUCT(AC17+AO17) -> 39 | H22: =PRODUCT(AD17+AP17) -> 34 | I22: =PRODUCT(AE17+AQ17) -> 0 | J22: 0.0 % | K22: =PRODUCT(AG17+AS17) -> 0 | L22: =PRODUCT((F22+G22)/E22) -> 0.68 | M22: =PRODUCT(H22/E22) -> 0.57 | N22: =PRODUCT((F22+G22+H22)/E22) -> 1.25 | O22: =PRODUCT(I22/E22) -> 0.00
B23: YHTEENSÄ | E23: =SUM(E20:E22) -> 150 | F23: =SUM(F20:F22) -> 4 | G23: 90 | H23: 93 | I23: 165 | J23: 0.0 % | K23: =SUM(K20:K22) ->  | L23: =PRODUCT((F23+G23)/E23) -> 0.63 | M23: =PRODUCT(H23/E23) -> 0.62 | N23: =PRODUCT((F23+G23+H23)/E23) -> 1.25 | O23: =PRODUCT(I23/E23) -> 1.10

Sheet Kärkilyönnit
B1: KÄRKILYÖNNIT RUNKOSARJASSA | V1: VUOSITTAISET SIJOITUKSET TOP - 30
G2: 0 > 1 | J2: 1 > 2 | M2: 2 > 3 | P2: 3 > k | S2: Yhteensä
B3: Vuosi | C3: Sija | D3: Seura | E3: OTT | F3: KL | G3: YHT | H3: % | I3: KL | J3: YHT | K3: % | L3: KL | M3: YHT | N3: % | O3: KL | P3: YHT | Q3: % | R3: KL | S3: YHT | T3: % | V3: Vuosi | W3: Sija | X3: Seura | Y3: 0 > 1 | Z3: 1 > 2 | AA3: 2 > 3 | AB3: 3 > k | AC3: KL
B4: 1981 | C4: 12. | D4: KaKa | E4: 22 | F4: 16 | G4: 39 | H4: =PRODUCT(F4/G4) -> 41.0 % | I4: 30 | J4: 45 | K4: =PRODUCT(I4/J4) -> 66.7 % | L4: 11 | M4: 23 | N4: =PRODUCT(L4/M4) -> 47.8 % | O4: 14 | P4: 27 | Q4: =PRODUCT(O4/P4) -> 51.9 % | R4: 71 | S4: =PRODUCT(G4+J4+M4+P4) -> 134 | T4: =PRODUCT(R4/S4) -> 53.0 % | V4: 1981 | W4: 12. | X4: KaKa | Z4: 22.
B5: Yhteensä | E5: =SUM(E4:E4) -> 22 | F5: =SUM(F4:F4) -> 16 | G5: =SUM(G4:G4) -> 39 | H5: =PRODUCT(F5/G5) -> 41.0 % | I5: =SUM(I4:I4) -> 30 | J5: =SUM(J4:J4) -> 45 | K5: =PRODUCT(I5/J5) -> 66.7 % | L5: =SUM(L4:L4) -> 11 | M5: =SUM(M4:M4) -> 23 | N5: =PRODUCT(L5/M5) -> 47.8 % | O5: =SUM(O4:O4) -> 14 | P5: =SUM(P4:P4) -> 27 | Q5: =PRODUCT(O5/P5) -> 51.9 % | R5: =SUM(R4:R4) -> 71 | S5: =SUM(S4:S4) -> 134 | T5: =PRODUCT(R5/S5) -> 53.0 %
